bitfinex/quotes_SOLUSD_20240814
["timestamp","ask_amount","ask_price","bid_price","bid_amount"]
[1723674105321,12.951,143.74,143.65,45.25098]
[1723674105532,12.951,143.74,143.66,0.12549]
[1723674105710,12.951,143.74,143.67,0.12549]
[1723674105903,12.951,143.74,143.67,0.25098]
[1723674106530,20.0,143.73,143.67,0.25098]
[1723674107431,20.0,143.74,143.67,0.12549]
[1723674107617,20.0,143.74,143.66,0.25098]
[1723674114641,20.0,143.74,143.61,12.583]
[1723674114811,32.55432069,143.74,143.61,12.583]
[1723674115018,12.36,143.73,143.61,12.583]
[1723674115332,32.506,143.71,143.57,44.0177]
[1723674115542,45.06032069,143.71,143.57,44.0177]
[1723674115748,65.0,143.7,143.57,44.0177]
[1723674116236,12.55739461,143.69,143.57,44.0177]
[1723674116439,20.0,143.68,143.57,44.0177]
[1723674116840,20.0,143.68,143.58,45.12549]
[1723674117615,20.0,143.69,143.58,45.12549]
[1723674119256,44.866,143.68,143.57,12.583]
[1723674119433,52.55742884,143.67,143.53,44.0177]
[1723674119738,12.55742884,143.66,143.53,44.0177]
[1723674119943,32.506,143.64,143.53,12.583]
[1723674120154,65.06342884,143.64,143.5,31.4347]
[1723674120457,65.06342884,143.64,143.49,30.0054]
[1723674120458,32.506,143.61,143.49,12.583]
[1723674120612,40.0,143.6,143.47,31.4347]
[1723674120811,57.56256013,143.59,143.47,31.4347]
[1723674121029,32.56256013,143.58,143.47,31.4347]
[1723674121210,20.0,143.58,143.47,31.4347]
[1723674121632,20.0,143.59,143.47,31.4347]
[1723674122835,32.56569173,143.6,143.48,45.12549]
[1723674123020,32.56582921,143.6,143.48,45.12549]
[1723674123552,72.56582921,143.6,143.48,45.12549]
[1723674123729,45.0,143.59,143.48,45.0]
[1723674123923,20.0,143.58,143.48,45.0]
[1723674124532,20.0,143.59,143.48,45.0]
[1723674124747,20.0,143.59,143.49,0.9390659]
[1723674125447,20.0,143.59,143.49,0.12549]
[1723674126650,32.56574796,143.6,143.49,0.12549]
[1723674128050,12.56574796,143.6,143.5,13.0819]
[1723674128213,32.506,143.61,143.51,45.50196]
[1723674128641,32.506,143.61,143.51,45.25098]
[1723674128847,32.506,143.61,143.51,45.12549]
[1723674129221,20.0,143.6,143.51,45.12549]
[1723674131243,33.0152,143.65,143.52,37.55497]
[1723674131439,53.0152,143.65,143.53,45.12549]
[1723674131638,53.0152,143.65,143.53,45.0]
[1723674131841,12.5625726,143.64,143.53,45.0]
[1723674132749,20.0,143.63,143.53,45.0]
[1723674133876,20.0,143.64,143.53,45.0]
[1723674134856,32.56288605,143.64,143.53,45.0]
[1723674135061,20.0,143.61,143.5,13.0819]
[1723674135270,20.0,143.6,143.5,13.0819]
[1723674135472,40.0,143.6,143.5,13.0819]
[1723674135972,33.0152,143.59,143.48,30.2109]
[1723674136150,20.0,143.58,143.48,30.2109]
[1723674137269,20.0,143.58,143.49,45.12549]
[1723674141642,12.5149,143.61,143.5,0.37647]
[1723674141874,12.5149,143.61,143.51,0.12549]
[1723674142468,31.5668,143.62,143.51,0.12549]
[1723674142469,31.5668,143.62,143.54,30.6078]
[1723674142771,31.5668,143.66,143.55,45.25098]
[1723674143344,31.5668,143.66,143.55,45.12549]
[1723674143578,20.0,143.65,143.55,45.12549]
[1723674143849,20.0,143.63,143.51,13.1003]
[1723674144064,20.0,143.63,143.52,45.12549]
[1723674144271,20.0,143.62,143.52,45.12549]
[1723674144679,32.1913,143.65,143.52,45.12549]
[1723674144680,20.0,143.64,143.52,45.12549]
[1723674144845,32.56470854,143.64,143.52,45.12549]
[1723674145252,45.0,143.63,143.52,45.0]
[1723674145457,20.0,143.62,143.52,45.0]
[1723674146187,20.0,143.63,143.52,45.0]
[1723674146966,20.0,143.63,143.53,0.12549]
[1723674147173,20.0,143.64,143.53,0.12549]
[1723674147485,20.0,143.64,143.53,0.25098]
[1723674148599,12.1913,143.65,143.53,0.25098]
[1723674148801,12.1913,143.65,143.54,0.25098]
[1723674148953,12.1913,143.65,143.55,0.12549]
[1723674149160,12.1913,143.65,143.52,45.0]
[1723674149482,24.75445739,143.65,143.53,0.25098]
[1723674149863,12.1913,143.65,143.53,0.25098]
[1723674150078,20.0,143.64,143.53,0.12549]
[1723674151990,20.0,143.64,143.53,0.50196]
[1723674152489,32.56305929,143.65,143.53,0.50196]
[1723674152660,20.0,143.65,143.53,0.50196]
[1723674153689,20.0,143.65,143.54,6.9666]
[1723674153871,30.1915,143.69,143.55,45.50196]
[1723674154071,30.1915,143.69,143.55,52.46806]
[1723674154594,30.1915,143.69,143.56,6.9656]
[1723674154803,30.1915,143.69,143.57,45.50196]
[1723674155299,30.1915,143.69,143.58,45.0]
[1723674155466,30.1915,143.69,143.59,0.12549]
[1723674155666,20.0,143.68,143.57,0.50196]
[1723674155882,32.56013017,143.68,143.57,0.50196]
[1723674159596,32.55904877,143.68,143.57,0.50196]
[1723674160291,32.55904877,143.68,143.57,0.12549]
[1723674160967,32.55904877,143.68,143.55,0.12549]
[1723674161164,72.65444157,143.68,143.54,44.0743]
[1723674161407,57.55904877,143.67,143.54,44.0743]
[1723674161667,32.55904877,143.66,143.54,44.0743]
[1723674162064,52.65765219,143.66,143.54,44.0743]
[1723674162289,12.55904877,143.65,143.54,44.0743]
[1723674162597,20.0,143.64,143.54,44.0743]
[1723674162782,20.0,143.64,143.55,45.0]
[1723674164078,20.0,143.64,143.56,0.12549]
[1723674165787,20.0,143.65,143.56,0.12549]
[1723674165989,32.55904877,143.65,143.56,0.12549]
[1723674167203,32.65662567,143.66,143.56,0.25098]
[1723674167400,20.0975769,143.66,143.56,0.37647]
[1723674168495,20.0,143.65,143.56,0.37647]
[1723674168696,32.55994375,143.65,143.56,0.37647]
[1723674170007,12.55994375,143.65,143.56,7.34207]
[1723674170199,20.0975769,143.66,143.57,45.12549]
[1723674170396,20.0975769,143.66,143.58,0.12549]
[1723674170799,12.55994375,143.68,143.58,0.12549]
[1723674171207,20.0,143.67,143.58,0.12549]
[1723674172113,20.0,143.67,143.59,46.1454]
[1723674172432,20.0,143.67,143.6,45.12549]
[1723674178839,32.55763314,143.68,143.6,45.12549]
[1723674179944,32.55763314,143.68,143.6,45.0]
[1723674180248,32.55763314,143.68,143.59,46.1454]
[1723674183230,32.55763314,143.68,143.6,45.12549]
[1723674184552,32.55719161,143.68,143.6,45.12549]
[1723674187136,32.55710585,143.68,143.61,0.25098]
[1723674187339,20.0,143.68,143.62,0.12549]
[1723674187724,32.55710585,143.72,143.62,0.12549]
[1723674188147,32.55563894,143.72,143.62,0.12549]
[1723674188325,20.0,143.72,143.62,0.12549]
[1723674188721,68.46572916,143.73,143.63,0.12549]
[1723674188926,43.35504305,143.73,143.63,0.37647]
[1723674189148,12.55534305,143.72,143.64,0.12549]
[1723674189346,68.46368015,143.73,143.64,0.12549]
[1723674189654,88.46368015,143.73,143.62,45.0]
[1723674189822,12.55534305,143.72,143.62,45.0]
[1723674190024,20.0,143.71,143.62,45.0]
[1723674190225,32.55534305,143.71,143.62,45.0]
[1723674190426,32.55534305,143.71,143.59,46.1454]
[1723674191535,12.55534305,143.71,143.59,46.1454]
[1723674191728,20.0,143.7,143.59,46.1454]
[1723674192854,20.0,143.7,143.6,45.12549]
[1723674193043,20.0,143.7,143.61,0.12549]
[1723674195061,12.55775377,143.71,143.61,0.12549]
[1723674195240,20.0,143.7,143.61,0.25098]
[1723674195428,20.0,143.71,143.61,0.25098]
[1723674195627,32.55653225,143.71,143.61,0.25098]
[1723674196338,32.55653225,143.71,143.61,0.12549]
[1723674196532,20.0,143.71,143.61,0.12549]
[1723674197634,20.0,143.71,143.61,0.25098]
[1723674199955,20.0,143.71,143.61,0.12549]
[1723674200158,32.55653225,143.71,143.61,0.12549]
[1723674201658,32.55653225,143.71,143.61,0.25098]
[1723674201958,20.0,143.71,143.61,0.25098]
[1723674203563,20.0,143.71,143.62,0.12549]
[1723674203764,12.55494145,143.72,143.62,0.37647]
[1723674203974,12.55494145,143.72,143.64,0.12549]
[1723674204257,30.7997,143.73,143.64,45.37647]
[1723674204446,30.7997,143.73,143.65,0.12549]
[1723674205044,20.0,143.72,143.65,0.12549]
[1723674205254,32.55494145,143.72,143.65,0.12549]
[1723674205665,20.0,143.72,143.65,0.12549]
[1723674205857,20.0,143.74,143.66,0.12549]
[1723674206078,20.0,143.74,143.66,0.37647]
[1723674206274,32.55087364,143.75,143.67,0.12549]
[1723674206574,12.55087364,143.75,143.67,0.12549]
[1723674206787,15.33980364,143.78,143.69,44.413]
[1723674206957,15.33980364,143.78,143.7,45.12549]
[1723674206958,2.78893,143.78,143.7,45.12549]
[1723674207148,30.6755,143.8,143.71,0.25098]
[1723674207149,43.22637364,143.8,143.71,0.25098]
[1723674207352,12.55087364,143.79,143.72,0.12549]
[1723674207775,30.6755,143.8,143.72,0.12549]
[1723674208177,12.55087364,143.82,143.72,0.12549]
[1723674208355,25.04957364,143.83,143.72,0.12549]
[1723674209461,12.55087364,143.83,143.72,0.12549]
[1723674209654,32.1685,143.84,143.74,13.2005]
[1723674209852,32.1685,143.84,143.75,77.42506]
[1723674210051,32.1685,143.84,143.75,77.29957]
[1723674210287,32.1685,143.84,143.75,77.04859]
[1723674210983,20.0,143.83,143.75,77.04859]
[1723674211496,32.54443199,143.83,143.75,77.04859]
[1723674214080,20.0,143.83,143.75,77.04859]
[1723674214283,32.54443199,143.86,143.75,77.04859]
[1723674215085,32.54432351,143.86,143.75,77.04859]
[1723674215782,20.0,143.86,143.76,0.37647]
[1723674215987,20.0,143.86,143.77,0.12549]
[1723674219679,20.0,143.86,143.78,12.0999]
[1723674219881,12.0862,143.9,143.79,45.12549]
[1723674219882,20.0,143.89,143.79,45.12549]
[1723674220762,20.0,143.89,143.79,45.0]
[1723674221187,20.0,143.89,143.8,0.12549]
[1723674221361,30.8896,143.91,143.8,0.12549]
[1723674222088,30.8896,143.91,143.81,31.1725]
[1723674222269,30.8896,143.91,143.82,45.12549]
[1723674222877,253.5,143.94,143.83,12.0999]
[1723674223091,253.5,143.94,143.84,45.12549]
[1723674223296,273.5,143.94,143.84,45.12549]
[1723674223605,273.5,143.94,143.84,45.0]
[1723674224688,20.0,143.93,143.84,45.0]
[1723674227877,20.0,143.94,143.84,45.0]
[1723674233422,20.0,143.94,143.85,33.1965]
[1723674233616,20.0,143.94,143.86,45.12549]
[1723674234401,0.811394,143.96,143.86,45.12549]
[1723674237683,0.811394,143.96,143.87,12.3953]
[1723674237915,0.811394,143.96,143.89,33.1965]
[1723674239585,0.811394,143.96,143.9,45.12549]
[1723674240442,0.811394,143.96,143.91,12.3953]
[1723674242594,0.811394,143.96,143.89,33.1965]
[1723674242807,45.811394,143.96,143.87,12.766]
[1723674243015,20.0,143.95,143.87,12.766]
[1723674243742,20.811394,143.96,143.87,12.766]
[1723674245313,20.811394,143.96,143.88,45.0]
[1723674247117,0.811394,143.96,143.88,45.0]
[1723674247902,0.811394,143.96,143.87,12.766]
[1723674252019,33.34566743,143.96,143.87,12.766]
[1723674253528,53.34566743,143.96,143.87,12.766]
[1723674253766,40.811394,143.96,143.87,12.766]
[1723674253930,12.53437469,143.95,143.87,12.766]
[1723674254243,20.0,143.94,143.87,12.766]
[1723674255233,20.0,143.95,143.87,12.766]
[1723674256536,20.0,143.95,143.85,31.1031]
[1723674256537,70.7679,143.95,143.85,31.1031]
[1723674256847,12.53437469,143.94,143.85,31.1031]
[1723674257030,20.0,143.93,143.85,31.1031]
[1723674257858,20.0,143.93,143.86,45.0]
[1723674258451,12.53636728,143.94,143.86,45.0]
[1723674258664,12.53636728,143.94,143.87,0.12549]
[1723674258850,0.811394,143.96,143.88,12.7119]
[1723674260136,20.811394,143.96,143.88,12.7119]
[1723674260331,0.811394,143.96,143.88,12.7119]
[1723674260526,20.811394,143.96,143.88,12.7119]
[1723674260732,33.34776128,143.96,143.88,12.7119]
[1723674261232,20.811394,143.96,143.88,12.7119]
[1723674261431,33.34649772,143.96,143.88,12.7119]
[1723674261649,20.811394,143.96,143.88,12.7119]
[1723674262559,40.811394,143.96,143.85,31.1031]
[1723674262859,12.53510372,143.95,143.85,31.1031]
[1723674263063,20.0,143.94,143.85,31.1031]
[1723674263268,12.53510372,143.95,143.85,31.1031]
[1723674263560,20.0,143.94,143.85,31.1031]
[1723674263854,33.34649772,143.96,143.86,45.0]
[1723674263855,12.53510372,143.95,143.86,45.0]
[1723674264062,20.0,143.94,143.86,45.0]
[1723674264240,12.53510372,143.95,143.86,45.0]
[1723674264443,20.0,143.94,143.86,45.0]
[1723674264670,12.53510372,143.95,143.86,45.0]
[1723674264942,33.34654525,143.96,143.86,45.0]
[1723674265171,20.811394,143.96,143.86,45.0]
[1723674265366,0.811394,143.96,143.86,45.0]
[1723674265547,65.811394,143.96,143.85,31.1031]
[1723674265742,52.59138399,143.95,143.85,31.1031]
[1723674265942,12.53514769,143.94,143.85,31.1031]
[1723674266170,20.0,143.93,143.85,31.1031]
[1723674268673,52.4458,143.93,143.85,31.1031]
[1723674268838,12.53611397,143.92,143.85,31.1031]
[1723674269041,20.0,143.91,143.85,31.1031]
[1723674269238,32.53611397,143.91,143.85,31.1031]
[1723674270768,32.53611397,143.91,143.86,45.0]
[1723674270947,20.0,143.91,143.86,45.0]
[1723674271153,32.53611397,143.94,143.86,45.0]
[1723674271343,32.53611397,143.94,143.85,31.1031]
[1723674271949,65.0,143.93,143.84,12.9737]
[1723674272165,52.59519804,143.92,143.84,12.9737]
[1723674272366,12.53611397,143.91,143.84,12.9737]
[1723674272559,20.0,143.9,143.84,12.9737]
[1723674273181,45.0,143.93,143.84,12.9737]
[1723674273182,20.0,143.92,143.84,12.9737]
[1723674273554,20.0,143.93,143.84,12.9737]
[1723674273747,32.59879909,143.92,143.84,12.9737]
[1723674274061,20.0,143.91,143.84,12.9737]
[1723674274382,32.53809399,143.91,143.84,12.9737]
[1723674275252,20.0,143.91,143.85,45.0]
[1723674275446,12.53597664,143.91,143.85,45.0]
[1723674275647,20.0,143.9,143.85,45.0]
[1723674276169,20.0,143.9,143.84,12.9737]
[1723674277350,32.53603039,143.94,143.84,12.9737]
[1723674279555,52.59455859,143.94,143.84,12.9737]
[1723674279745,52.59467909,143.94,143.84,12.9737]
[1723674279946,12.53645536,143.93,143.84,12.9737]
[1723674280176,20.0,143.92,143.84,12.9737]
[1723674280607,32.53645536,143.92,143.84,12.9737]
[1723674282079,32.53755744,143.92,143.84,12.9737]
[1723674282306,20.0,143.92,143.84,12.9737]
[1723674282574,40.0,143.95,143.84,12.9737]
[1723674282575,20.0,143.93,143.84,12.9737]
[1723674282780,32.53755744,143.93,143.84,12.9737]
[1723674283078,20.0,143.92,143.84,12.9737]
[1723674283411,32.53755083,143.92,143.84,12.9737]
[1723674283710,52.59763216,143.92,143.84,12.9737]
[1723674283892,12.53755083,143.91,143.84,12.9737]
[1723674284085,20.0,143.9,143.84,12.9737]
[1723674284814,32.53755888,143.91,143.84,12.9737]
[1723674285020,20.0,143.91,143.84,12.9737]
[1723674285904,32.53745757,143.91,143.84,12.9737]
[1723674287027,32.53772378,143.91,143.84,12.9737]
[1723674289193,20.0,143.91,143.84,12.9737]
[1723674289386,20.0,143.93,143.84,12.9737]
[1723674291085,32.53752023,143.93,143.84,12.9737]
[1723674292389,20.0,143.92,143.84,12.9737]
[1723674292590,45.0,143.91,143.81,30.1262]
[1723674292795,32.53752023,143.9,143.81,30.1262]
[1723674293107,52.59668238,143.9,143.81,30.1262]
[1723674293307,12.53752023,143.89,143.81,30.1262]
[1723674293620,20.0,143.88,143.81,30.1262]
[1723674295182,20.0,143.92,143.81,30.1262]
[1723674295388,20.0,143.92,143.82,45.0]
[1723674295814,12.53887572,143.93,143.82,45.0]
[1723674296000,12.53887572,143.94,143.84,12.0085]
[1723674296183,57.6793592,143.95,143.84,12.0085]
[1723674296385,57.6793592,143.95,143.85,45.0]
[1723674297202,57.6793592,143.95,143.86,32.602]
[1723674297797,12.53887572,143.94,143.86,32.602]
[1723674297995,12.53887572,143.95,143.86,32.602]
[1723674298232,20.0,143.94,143.86,32.602]
[1723674298817,32.53887572,143.94,143.86,32.602]
[1723674301227,20.0,143.94,143.86,32.602]
[1723674301405,32.53887572,143.94,143.86,32.602]
[1723674304631,32.53561637,143.94,143.86,32.602]
[1723674308561,32.53607879,143.94,143.86,32.602]
[1723674312822,32.53578024,143.94,143.86,32.602]
[1723674313025,20.0,143.94,143.86,32.602]
[1723674313234,20.0,143.93,143.86,32.602]
[1723674313535,12.53578024,143.94,143.87,12.0675]
[1723674313738,0.811394,143.96,143.88,45.12549]
[1723674313907,0.811394,143.96,143.89,30.384]
[1723674314225,0.811394,143.96,143.9,45.0]
[1723674314430,0.811394,143.96,143.89,30.384]
[1723674316075,13.34419045,143.96,143.91,13.1229]
[1723674316215,13.34189827,143.96,143.92,0.12549]
[1723674316417,0.811394,143.96,143.92,45.12549]
[1723674316825,0.811394,143.96,143.92,45.0]
[1723674318251,0.811394,143.96,143.94,13.1229]
[1723674318548,0.811394,143.96,143.95,45.12549]
[1723674319247,0.811394,143.96,143.95,45.0]
[1723674319611,0.811394,143.96,143.95,45.12549]
[1723674321133,0.811394,143.96,143.94,13.1229]
[1723674322523,0.811394,143.96,143.93,31.4712]
[1723674322734,0.811394,143.96,143.9,13.1229]
[1723674324024,20.811394,143.96,143.9,13.1229]
[1723674324238,33.34394963,143.96,143.9,13.1229]
[1723674324639,33.34394963,143.96,143.86,44.5941]
[1723674325446,20.811394,143.96,143.86,44.5941]
[1723674325641,0.811394,143.96,143.86,44.5941]
[1723674325850,0.811394,143.96,143.87,45.0]
[1723674326452,0.811394,143.96,143.88,0.12549]
[1723674327846,0.811394,143.96,143.88,0.25098]
[1723674328353,0.811394,143.96,143.88,0.12549]
[1723674330475,20.811394,143.96,143.88,0.12549]
[1723674331951,0.811394,143.96,143.88,0.12549]
[1723674334053,0.811394,143.96,143.86,44.5941]
[1723674334271,32.5847,143.95,143.86,44.5941]
[1723674334591,32.5847,143.95,143.81,45.2873]
[1723674334592,20.0,143.94,143.81,45.2873]
[1723674334868,32.53451569,143.94,143.81,45.2873]
[1723674335164,52.53451569,143.94,143.81,45.2873]
[1723674335489,12.53451569,143.93,143.81,45.2873]
[1723674335629,20.0,143.92,143.81,45.2873]
[1723674336140,20.0,143.92,143.82,0.12549]
[1723674336342,20.0,143.93,143.82,45.12549]
[1723674337351,32.5847,143.95,143.83,0.25098]
[1723674337523,32.5847,143.95,143.83,17.63208]
[1723674337728,45.11946279,143.95,143.85,0.12549]
[1723674338029,32.5847,143.95,143.85,0.25098]
[1723674338223,32.5847,143.95,143.86,0.25098]
[1723674338824,20.0,143.94,143.86,0.25098]
[1723674339651,32.53404825,143.94,143.86,0.25098]
[1723674339838,20.0,143.94,143.86,0.25098]
[1723674340230,20.0,143.94,143.85,0.12549]
[1723674341357,32.53554034,143.94,143.85,0.12549]
[1723674341536,32.53554034,143.94,143.81,45.2873]
[1723674342629,32.53554034,143.94,143.82,0.37647]
[1723674342858,32.53554034,143.94,143.82,45.37647]
[1723674343061,32.53554034,143.94,143.82,45.25098]
[1723674343360,32.53554034,143.94,143.82,45.12549]
[1723674348383,52.53558947,143.94,143.82,45.12549]
[1723674348686,12.53558947,143.93,143.82,45.12549]
[1723674348972,12.53565668,143.93,143.82,45.12549]
[1723674349262,20.0,143.92,143.82,45.12549]
[1723674349472,20.0,143.92,143.81,12.9341]
[1723674349473,30.6239,143.91,143.81,12.9341]
[1723674349643,30.6239,143.91,143.78,12.2408]
[1723674349644,32.6822,143.9,143.78,12.2408]
[1723674349839,45.21785668,143.9,143.78,12.2408]
[1723674352152,12.53839176,143.89,143.79,0.12549]
[1723674352350,20.0,143.88,143.79,45.12549]
[1723674352548,12.53839176,143.89,143.79,45.12549]
[1723674352753,20.0,143.88,143.79,45.12549]
[1723674353251,20.0,143.89,143.79,45.12549]
[1723674355764,32.53901684,143.89,143.79,45.12549]
[1723674355959,20.0,143.89,143.79,45.12549]
[1723674359467,32.53901684,143.89,143.79,45.12549]
[1723674359706,20.0,143.89,143.79,45.12549]
[1723674361066,32.5388755,143.89,143.79,45.12549]
[1723674361252,20.0,143.89,143.79,45.12549]
[1723674361452,20.0,143.89,143.8,0.25098]
[1723674361684,30.6239,143.91,143.81,0.37647]
[1723674361858,12.055,143.94,143.83,43.4312]
[1723674361859,12.53628606,143.93,143.83,43.4312]
[1723674362157,24.59128606,143.94,143.84,45.12549]
[1723674363069,20.0,143.93,143.84,45.12549]
[1723674364378,12.53628606,143.94,143.85,0.12549]
[1723674364551,31.5114,143.95,143.85,0.25098]
[1723674364755,31.5114,143.95,143.86,0.12549]
[1723674365784,20.0,143.94,143.86,0.12549]
[1723674365948,32.5342859,143.94,143.86,0.12549]
[1723674366874,20.0,143.94,143.86,0.12549]
[1723674367087,32.53471106,143.94,143.84,45.0]
[1723674368076,32.53471106,143.94,143.85,0.12549]
[1723674368278,32.53471106,143.94,143.84,45.0]
[1723674368683,32.53459186,143.94,143.84,45.0]
[1723674368884,52.5919782,143.94,143.84,45.0]
[1723674369058,12.53459186,143.93,143.84,45.0]
[1723674369266,20.0,143.92,143.84,45.0]
[1723674369653,32.5358388,143.93,143.85,0.12549]
[1723674369893,32.5358388,143.93,143.85,0.25098]
[1723674370183,20.0,143.93,143.85,0.37647]
[1723674373958,12.5358388,143.94,143.86,44.8303]
[1723674374163,0.811394,143.96,143.87,45.50196]
[1723674376169,0.811394,143.96,143.87,62.87826]
[1723674376374,0.811394,143.96,143.89,0.12549]
[1723674376572,0.811394,143.96,143.89,45.50196]
[1723674376773,0.811394,143.96,143.9,45.12549]
[1723674376966,0.811394,143.96,143.91,0.12549]
[1723674377186,0.811394,143.96,143.89,0.12549]
[1723674377187,0.811394,143.96,143.88,0.12549]
[1723674378573,0.811394,143.96,143.86,44.8303]
[1723674379393,20.811394,143.96,143.86,44.8303]
[1723674380595,13.953094,143.96,143.86,12.0952]
[1723674380917,13.953094,143.96,143.83,32.7351]
[1723674380918,51.9905,143.94,143.83,44.8303]
[1723674381099,51.9905,143.94,143.79,7.27026804]
[1723674381100,32.53403794,143.93,143.79,52.10056804]
[1723674381430,20.0,143.92,143.79,44.8303]
[1723674381611,20.0,143.91,143.79,44.8303]
[1723674381969,40.06266005,143.91,143.79,44.8303]
[1723674382166,20.0,143.91,143.79,44.8303]
[1723674383200,20.0,143.91,143.8,0.12549]
[1723674383385,20.0,143.91,143.8,45.12549]
[1723674385786,12.5959,143.9,143.8,45.12549]
[1723674386299,20.0,143.89,143.8,45.12549]
[1723674390398,32.284,143.88,143.8,45.12549]
[1723674390602,20.0,143.87,143.8,45.12549]
[1723674392803,20.0,143.87,143.75,60.6485]
[1723674393011,20.0,143.87,143.76,0.12549]
[1723674393222,20.0,143.87,143.76,7.40015358]
[1723674393388,20.0,143.87,143.76,14.35595358]
[1723674393888,20.0,143.87,143.77,0.12549]
[1723674395212,20.0,143.87,143.77,0.25098]
[1723674395389,20.0,143.87,143.77,0.37647]
[1723674395801,20.0,143.87,143.77,45.37647]
[1723674400920,32.284,143.88,143.77,62.76467]
[1723674401153,32.284,143.88,143.78,0.12549]
[1723674401303,32.284,143.88,143.79,0.12549]
[1723674401601,32.284,143.88,143.79,45.37647]
[1723674402416,20.0,143.87,143.79,45.37647]
[1723674406195,20.0,143.87,143.79,0.37647]
[1723674406523,20.0,143.87,143.8,45.0]
[1723674406712,20.0,143.87,143.81,0.12549]
[1723674407223,20.0,143.87,143.8,0.25098]
[1723674408540,20.0,143.87,143.81,0.12549]
[1723674408703,20.0,143.87,143.81,0.25098]
[1723674408904,20.0,143.87,143.82,0.25098]
[1723674409325,20.0,143.87,143.82,0.12549]
[1723674409625,20.0,143.87,143.81,45.12549]
[1723674409626,20.0,143.87,143.81,45.0]
[1723674409827,20.0,143.87,143.82,0.12549]
[1723674410194,20.0,143.87,143.81,45.0]
[1723674413727,20.0,143.87,143.82,0.12549]
[1723674414433,12.5959,143.9,143.82,0.25098]
[1723674414601,12.5959,143.9,143.83,0.25098]
[1723674414803,12.5959,143.9,143.84,0.12549]
[1723674415823,20.0,143.89,143.84,0.12549]
[1723674416027,20.0,143.9,143.84,0.12549]
[1723674419252,20.0,143.9,143.84,0.25098]
[1723674419396,20.0,143.9,143.85,0.12549]
[1723674419600,20.0,143.9,143.85,0.25098]
[1723674419801,20.0,143.9,143.86,0.12549]
[1723674420533,20.0,143.9,143.85,0.37647]
[1723674420734,20.0,143.9,143.85,0.25098]
[1723674421029,20.0,143.9,143.85,0.12549]
[1723674421338,20.0,143.9,143.84,0.25098]
[1723674428129,20.811394,143.96,143.85,0.12549]
[1723674428130,33.1784,143.95,143.85,0.12549]
[1723674429552,20.0,143.94,143.85,0.12549]
[1723674430080,20.0,143.94,143.85,0.25098]
[1723674430219,20.0,143.94,143.86,0.25098]
[1723674430638,20.0,143.94,143.87,0.12549]
[1723674430834,0.811394,143.96,143.87,64.83508]
[1723674431030,0.811394,143.96,143.88,0.25098]
[1723674431254,0.811394,143.96,143.89,0.12549]
[1723674431938,0.811394,143.96,143.89,0.25098]
[1723674432141,0.811394,143.96,143.9,0.25098]
[1723674433238,0.811394,143.96,143.9,0.12549]
[1723674434462,0.811394,143.96,143.87,12.6337]
[1723674435467,0.811394,143.96,143.86,31.0357]
[1723674435668,43.6125,143.95,143.83,12.4891]
[1723674435843,20.0,143.94,143.83,12.4891]
[1723674436567,40.0,143.94,143.82,30.3016]
[1723674436807,31.745,143.93,143.8,20.00693229]
[1723674437070,20.0,143.92,143.8,20.00693229]
[1723674437943,20.0,143.92,143.81,0.25098]